bitfinex-derivatives/quotes_BTCF0:USTF0_20250320
["timestamp","ask_amount","ask_price","bid_price","bid_amount"]
[1742433369597,0.49541388,86286.0,86285.0,0.09286909]
[1742433369790,0.58810838,86286.0,86285.0,0.09286909]
[1742433370189,0.28138541,86286.0,86285.0,0.09286909]
[1742433370500,0.00959091,86286.0,86285.0,0.10286909]
[1742433373194,0.00959091,86286.0,86285.0,0.11286909]
[1742433373394,0.00017379,86294.0,86293.0,0.092687]
[1742433373701,0.00017379,86294.0,86293.0,0.613487]
[1742433374094,0.00017379,86294.0,86293.0,0.798887]
[1742433374301,0.00017379,86294.0,86293.0,0.977687]
[1742433374997,0.09285969,86294.0,86293.0,0.977687]
[1742433375399,0.00017379,86294.0,86293.0,0.977687]
[1742433376196,0.00962195,86294.0,86293.0,0.977687]
[1742433376804,0.00962195,86294.0,86293.0,0.987687]
[1742433377905,0.4083,86307.0,86306.0,0.092673]
[1742433378203,0.3608,86309.0,86308.0,0.0926708]
[1742433378407,0.1831,86313.0,86311.0,0.0926676]
[1742433378408,4e-05,86312.0,86311.0,0.0926676]
[1742433378801,4e-05,86312.0,86311.0,0.10696098]
[1742433379311,0.2711066,86312.0,86311.0,0.0926676]
[1742433379502,0.4542066,86312.0,86311.0,0.0926676]
[1742433380397,0.4582066,86312.0,86311.0,0.0926676]
[1742433381924,0.4632066,86312.0,86311.0,0.0926676]
[1742433385109,0.0926698,86309.0,86308.0,0.1390054]
[1742433385312,0.0463359,86307.0,86303.0,0.00017379]
[1742433385507,0.0926751,86304.0,86303.0,0.00017379]
[1742433385704,0.0926751,86304.0,86303.0,0.09284999]
[1742433385907,0.10226603,86304.0,86303.0,0.09284999]
[1742433387123,0.10426603,86304.0,86303.0,0.09284999]
[1742433387827,0.43996603,86304.0,86303.0,0.09284999]
[1742433388125,0.44296603,86304.0,86303.0,0.09284999]
[1742433388424,0.4333751,86304.0,86303.0,0.09284999]
[1742433388616,0.005,86304.0,86303.0,0.09284999]
[1742433389316,0.005,86304.0,86303.0,0.23974999]
[1742433389621,0.0976751,86304.0,86303.0,0.23974999]
[1742433390121,0.005,86304.0,86303.0,0.23974999]
[1742433390321,0.005,86304.0,86303.0,0.24974999]
[1742433391522,0.0976751,86304.0,86303.0,0.24974999]
[1742433391920,0.005,86304.0,86303.0,0.24974999]
[1742433392820,0.005,86304.0,86303.0,0.25974999]
[1742433394121,0.005,86304.0,86303.0,0.44094999]
[1742433395233,0.0976751,86304.0,86303.0,0.44094999]
[1742433396020,0.4216751,86304.0,86303.0,0.44094999]
[1742433396219,0.4216751,86304.0,86303.0,0.43094999]
[1742433401926,0.4216751,86304.0,86303.0,0.19137379]
[1742433402129,0.0926891,86291.0,86289.0,0.0926908]
[1742433402330,0.0926891,86291.0,86290.0,0.2476902]
[1742433402536,0.0926891,86291.0,86290.0,0.2576902]
[1742433402735,0.0926891,86291.0,86290.0,0.3576902]
[1742433403130,0.0926878,86293.0,86292.0,0.092687]
[1742433403336,0.0926878,86293.0,86292.0,0.222687]
[1742433403633,0.0926878,86293.0,86292.0,0.549287]
[1742433404224,0.11985379,86299.0,86298.0,0.0926816]
[1742433404425,0.21253429,86299.0,86298.0,0.0926816]
[1742433405024,0.21253429,86299.0,86298.0,0.4267816]
[1742433405425,0.21353429,86299.0,86298.0,0.4267816]
[1742433405732,0.09385429,86299.0,86298.0,0.4267816]
[1742433406635,0.09485429,86299.0,86298.0,0.4267816]
[1742433407833,0.09485429,86299.0,86298.0,0.3341]
[1742433408427,0.09485429,86299.0,86298.0,0.4267816]
[1742433408623,0.09485429,86299.0,86298.0,0.3341]
[1742433408932,0.0926848,86295.0,86294.0,0.0463429]
[1742433409538,0.0926848,86295.0,86294.0,0.2261429]
[1742433410535,0.0926848,86295.0,86294.0,0.1798]
[1742433410733,0.0926848,86295.0,86294.0,0.2724859]
[1742433412734,0.0926848,86295.0,86218.0,0.12610917]
[1742433412735,0.0926977,86283.0,86280.0,0.3608]
[1742433413033,0.10209034,86283.0,86282.0,0.09287259]
[1742433413431,0.11154555,86283.0,86282.0,0.05664169]
[1742433414526,0.10209034,86283.0,86282.0,0.05664169]
[1742433414733,0.0927063,86275.0,86274.0,0.0001159]
[1742433414933,0.2123863,86275.0,86274.0,0.0001159]
[1742433415433,0.2123863,86275.0,86274.0,0.0928233]
[1742433415636,0.12907264,86275.0,86274.0,0.1028233]
[1742433416041,0.12907264,86275.0,86274.0,0.4010233]
[1742433416341,0.13007264,86275.0,86274.0,0.4010233]
[1742433416639,0.13107264,86275.0,86274.0,0.4010233]
[1742433417231,0.22377894,86275.0,86274.0,0.4010233]
[1742433417430,0.13107264,86275.0,86274.0,0.4010233]
[1742433417629,0.01139264,86275.0,86274.0,0.4010233]
[1742433418833,0.01139264,86275.0,86274.0,1.9010233]
[1742433419030,0.01139264,86275.0,86274.0,1.9110233]
[1742433420236,0.16499264,86275.0,86274.0,1.9110233]
[1742433420745,0.16499264,86275.0,86274.0,0.4110233]
[1742433422144,0.01139264,86275.0,86274.0,0.4110233]
[1742433423244,0.01139264,86275.0,86274.0,1.9110233]
[1742433424545,0.9262613,86298.0,86274.0,2.0883159]
[1742433424546,0.87992,86298.0,86274.0,2.0883159]
[1742433424846,0.1546,86293.0,86292.0,0.092688]
[1742433425038,0.36084,86297.0,86296.0,0.0926837]
[1742433425341,0.51544,86297.0,86296.0,0.0926837]
[1742433425745,0.15464,86297.0,86296.0,0.0926837]
[1742433426147,0.2473227,86297.0,86296.0,0.0926837]
[1742433426744,0.2483227,86297.0,86296.0,0.0926837]
[1742433428651,0.25780153,86297.0,86296.0,0.0926837]
[1742433429042,0.0926923,86288.0,86287.0,0.4534902]
[1742433429240,0.10217113,86288.0,86287.0,0.1026902]
[1742433429447,0.10217113,86288.0,86287.0,0.01]
[1742433429647,0.10217113,86288.0,86287.0,0.1026934]
[1742433429947,0.1390491,86283.0,86282.0,0.092698]
[1742433430145,0.14852793,86283.0,86282.0,0.102698]
[1742433430346,0.45382793,86283.0,86282.0,0.102698]
[1742433430544,0.4443491,86283.0,86282.0,0.102698]
[1742433433554,0.4443491,86283.0,86282.0,0.01]
[1742433433755,0.4443491,86283.0,86274.0,0.0001159]
[1742433433756,0.0927063,86276.0,86275.0,0.0927058]
[1742433433956,0.0927063,86276.0,86274.0,0.0928225]
[1742433433957,0.0927063,86275.0,86274.0,0.0928225]
[1742433434148,0.5263063,86275.0,86274.0,0.0101159]
[1742433434455,0.5263063,86275.0,86274.0,0.1028233]
[1742433434950,0.5263063,86275.0,86274.0,0.0101159]
[1742433435155,0.5263063,86275.0,86274.0,0.1028233]
[1742433435156,0.5273063,86275.0,86274.0,0.1028233]
[1742433435557,0.53687688,86275.0,86274.0,0.1028233]
[1742433435855,0.53587688,86275.0,86274.0,0.1028233]
[1742433436159,0.65547688,86275.0,86274.0,0.1028233]
[1742433437156,0.66522284,86275.0,86274.0,0.1028233]
[1742433437458,0.67850096,86275.0,86274.0,0.1028233]
[1742433437960,0.67846817,86275.0,86274.0,0.1028233]
[1742433440451,0.67848439,86275.0,86274.0,0.1028233]
[1742433440746,0.57249997,86275.0,86274.0,0.1028233]
[1742433440953,0.45289997,86275.0,86274.0,0.1028233]
[1742433441260,0.01929997,86275.0,86274.0,0.1028233]
[1742433442061,0.01929997,86275.0,86274.0,0.2406233]
[1742433442759,0.00974596,86275.0,86274.0,0.2406233]
[1742433443545,0.15174596,86275.0,86274.0,0.2406233]
[1742433443753,0.16127176,86275.0,86274.0,0.2406233]
[1742433444149,0.16127176,86275.0,86274.0,0.3826233]
[1742433444759,0.25397806,86275.0,86274.0,0.3826233]
[1742433445147,0.01927176,86275.0,86274.0,0.3826233]
[1742433446962,0.01927176,86275.0,86274.0,0.3926233]
[1742433450365,0.15847176,86275.0,86274.0,0.3926233]
[1742433451070,0.25117806,86275.0,86274.0,0.3926233]
[1742433452173,0.25117806,86275.0,86274.0,0.2999159]
[1742433452376,0.39727806,86275.0,86274.0,0.25368268]
[1742433452662,0.38775226,86275.0,86274.0,0.35639008]
[1742433458775,0.38775226,86275.0,86274.0,0.152]
[1742433458960,0.38775226,86275.0,77794.0,0.01820412]
[1742433458961,0.1390814,86263.0,86260.0,0.3608]
[1742433459162,0.1390814,86263.0,86262.0,0.0927194]
[1742433459358,0.4998814,86263.0,86262.0,0.1027194]
[1742433459559,0.1390814,86263.0,86262.0,0.1027194]
[1742433459767,0.14858885,86263.0,86262.0,0.1027194]
[1742433459965,0.15839231,86263.0,86262.0,0.1027194]
[1742433460270,0.15939231,86263.0,86262.0,0.1027194]
[1742433460462,0.15939231,86263.0,86262.0,0.2387194]
[1742433460974,0.1716566,86263.0,86262.0,0.2387194]
[1742433461877,0.0927289,86255.0,86254.0,0.0927279]
[1742433462068,0.10223635,86255.0,86254.0,0.2364279]
[1742433462266,0.00950745,86255.0,86254.0,0.2364279]
[1742433462771,0.10223525,86255.0,86254.0,0.3740279]
[1742433463070,0.11203871,86255.0,86254.0,0.3740279]
[1742433463273,0.11203871,86255.0,86254.0,0.5211279]
[1742433463575,0.01931091,86255.0,86254.0,0.5211279]
[1742433463781,0.11203871,86255.0,86254.0,0.5211279]
[1742433463968,0.11206882,86255.0,86254.0,0.5211279]
[1742433464469,0.01934102,86255.0,86254.0,0.5211279]
[1742433464870,0.00980346,86255.0,86254.0,0.5211279]
[1742433465271,0.00980346,86255.0,86254.0,0.6606479]
[1742433467470,0.10253126,86255.0,86254.0,0.6606479]
[1742433467669,0.00980346,86255.0,86254.0,0.6606479]
[1742433467885,0.01923203,86255.0,86254.0,0.6606479]
[1742433468379,0.11195983,86255.0,86254.0,0.6606479]
[1742433468979,0.01923203,86255.0,86254.0,0.6606479]
[1742433469878,0.00980346,86255.0,86254.0,0.6606479]
[1742433470984,0.00980346,86255.0,86254.0,0.5230479]
[1742433471174,0.15170346,86255.0,86254.0,0.5230479]
[1742433471679,0.24443126,86255.0,86254.0,0.5230479]
[1742433471879,0.25388197,86255.0,86254.0,0.5230479]
[1742433472088,0.16115411,86255.0,86254.0,0.5230479]
[1742433472473,0.25388191,86255.0,86254.0,0.5230479]
[1742433472673,0.25388191,86255.0,86254.0,0.4035279]
[1742433472875,0.24443126,86255.0,86254.0,0.4035279]
[1742433473784,0.25386197,86255.0,86254.0,0.4035279]
[1742433474189,0.25386197,86255.0,86254.0,0.2498279]
[1742433475082,0.25386197,86255.0,86254.0,0.3824279]
[1742433475696,0.25386197,86255.0,86254.0,0.2498279]
[1742433476085,0.25390161,86255.0,86254.0,0.2498279]
[1742433477089,0.25390161,86255.0,86254.0,0.3824279]
[1742433478185,0.25388113,86255.0,86254.0,0.3824279]
[1742433478787,0.39588113,86255.0,86254.0,0.3824279]
[1742433479692,0.30315333,86255.0,86254.0,0.3824279]
[1742433479994,0.38643126,86255.0,86254.0,0.3824279]
[1742433480392,0.29370346,86255.0,86254.0,0.3824279]
[1742433480594,0.38643126,86255.0,86254.0,0.3824279]
[1742433480797,0.39588302,86255.0,86254.0,0.3824279]
[1742433484603,0.39599274,86255.0,86254.0,0.3824279]
[1742433484901,4e-08,86256.0,86255.0,0.0927278]
[1742433485093,0.00017389,86270.0,86269.0,0.0927127]
[1742433485401,0.7691,86279.0,86269.0,0.0927127]
[1742433485402,0.4091,86279.0,86278.0,0.0927031]
[1742433485601,0.1386,86282.0,86281.0,0.0926998]
[1742433485801,0.1386,86282.0,86281.0,0.1026998]
[1742433486196,0.1386,86282.0,86281.0,0.11556331]
[1742433486392,0.0463414,86297.0,86281.0,0.11556331]
[1742433486393,0.02853161,86293.0,86292.0,0.092688]
[1742433486593,0.00084,86294.0,86293.0,0.092687]
[1742433486793,0.1386,86296.0,86295.0,0.0926848]
[1742433486992,0.00105389,86301.0,86300.0,0.0926794]
[1742433487300,0.11948,86305.0,86300.0,0.0926794]
[1742433487301,4e-05,86305.0,86304.0,0.0926751]
[1742433487498,4e-05,86305.0,86304.0,0.1326751]
[1742433487891,4e-05,86305.0,86304.0,0.4020751]
[1742433488096,4e-05,86305.0,86304.0,0.41505686]
[1742433488296,0.1421,86307.0,86306.0,0.092673]
[1742433488493,0.37802478,86308.0,86307.0,0.0926719]
[1742433488700,0.37802478,86308.0,86307.0,0.3820719]
[1742433489905,0.37802478,86308.0,86307.0,0.4020719]
[1742433490102,0.05799128,86308.0,86307.0,0.5356719]
[1742433490411,4e-05,86309.0,86308.0,0.0926708]
[1742433490609,4e-05,86309.0,86308.0,0.6878708]
[1742433490799,0.00017389,86313.0,86312.0,0.0926666]
[1742433491108,9e-08,86313.0,86312.0,0.8426666]
[1742433491503,9e-08,86313.0,86312.0,2.4926666]
[1742433491805,4e-05,86330.0,86329.0,0.0926483]
[1742433491998,4e-05,86330.0,86329.0,0.7928883]
[1742433492203,4e-05,86330.0,86329.0,1.0628883]
[1742433492403,4e-05,86330.0,86329.0,1.07621694]
[1742433492604,0.1435,86340.0,86339.0,0.0926376]
[1742433493001,0.2361365,86340.0,86339.0,0.0926376]
[1742433493213,0.25196583,86340.0,86339.0,0.0926376]
[1742433493507,0.25196583,86340.0,86339.0,0.2315376]
[1742433493708,0.25196583,86340.0,86339.0,0.3761376]
[1742433494008,0.15932933,86340.0,86339.0,0.3761376]
[1742433495402,0.18122738,86340.0,86339.0,0.3761376]
[1742433495906,0.17822738,86340.0,86339.0,0.3761376]
[1742433496106,0.18122681,86340.0,86339.0,0.3761376]
[1742433496494,0.18122681,86340.0,86339.0,0.3861376]
[1742433497003,0.19112017,86340.0,86339.0,0.3861376]
[1742433497208,0.20117222,86340.0,86339.0,0.3861376]
[1742433497702,0.05467222,86340.0,86339.0,0.3861376]
[1742433497906,0.05767222,86340.0,86339.0,0.3861376]
[1742433498909,0.05767222,86340.0,86339.0,0.4161376]
[1742433499108,0.20087222,86340.0,86339.0,0.4161376]
[1742433499314,0.05767222,86340.0,86339.0,0.4161376]
[1742433500402,0.20137222,86340.0,86339.0,0.4161376]
[1742433500597,0.20137222,86340.0,86339.0,0.3861376]
[1742433500910,0.20137222,86340.0,86339.0,0.36007084]
[1742433501107,0.19837222,86340.0,86339.0,0.36007084]
[1742433501510,0.20137222,86340.0,86339.0,0.36007084]
[1742433502301,0.05767222,86340.0,86339.0,0.36007084]
[1742433503605,2e-08,86340.0,86339.0,0.39007084]
[1742433504613,0.00300002,86340.0,86339.0,0.39007084]
[1742433505199,2e-08,86340.0,86339.0,0.63007084]
[1742433505410,0.00300002,86340.0,86339.0,0.63007084]
[1742433506007,0.006,86340.0,86339.0,0.63007084]
[1742433507017,0.006,86340.0,86339.0,2.13007084]
[1742433507615,0.006,86340.0,86339.0,0.63007084]
[1742433507817,0.00017379,86348.0,86347.0,0.092629]
[1742433507818,9e-08,86348.0,86347.0,0.092629]
[1742433508115,9e-08,86348.0,86347.0,1.072709]
[1742433508307,9e-08,86348.0,86347.0,1.322709]
[1742433508713,9e-08,86348.0,86347.0,1.605409]
[1742433509113,0.00500009,86348.0,86347.0,1.605409]
[1742433509611,0.00900009,86348.0,86347.0,1.605409]
[1742433509807,0.00900009,86348.0,86347.0,3.105409]
[1742433511221,0.00900009,86348.0,86347.0,3.11412728]
[1742433512313,0.0925897,86384.0,86366.0,0.0926086]
[1742433512509,0.4083,86387.0,86366.0,0.5334086]
[1742433512510,4e-05,86369.0,86366.0,0.5334086]
[1742433512913,0.1423,86368.0,86366.0,0.5334086]
[1742433513421,0.1472,86367.0,86366.0,0.8104086]
[1742433513618,0.16312944,86367.0,86366.0,0.8104086]
[1742433514015,0.16312944,86367.0,86366.0,0.82342678]
[1742433514213,0.32042651,86367.0,86366.0,0.82342678]
[1742433514409,0.30449707,86367.0,86366.0,0.82342678]
[1742433514613,0.02229707,86367.0,86366.0,0.82342678]
[1742433515522,0.02229707,86367.0,86366.0,0.78723911]
[1742433515819,0.039297,86367.0,86366.0,0.65473911]
[1742433516122,0.175297,86367.0,86366.0,0.65473911]
[1742433516319,0.038297,86367.0,86366.0,0.65473911]
[1742433516818,0.038297,86367.0,86366.0,0.69092678]
[1742433517024,0.038297,86367.0,86366.0,0.79393606]
[1742433517220,0.02199993,86367.0,86366.0,0.79393606]
[1742433517922,0.02299993,86367.0,86366.0,0.79393606]
[1742433519919,0.01290278,86367.0,86366.0,0.79393606]
[1742433520315,0.01254267,86367.0,86366.0,0.79393606]
[1742433521520,0.003,86367.0,86366.0,0.79393606]
[1742433523122,0.003,86367.0,86366.0,0.65473606]
[1742433524630,0.003,86367.0,86366.0,0.33012678]
[1742433524821,0.0956075,86367.0,86366.0,0.18562678]
[1742433525226,0.003,86367.0,86366.0,0.18562678]
[1742433525620,0.01243273,86367.0,86366.0,0.18562678]
[1742433526517,0.003,86367.0,86366.0,0.18562678]
[1742433529831,0.003,86367.0,86366.0,0.31522678]
[1742433531130,0.2625,86367.0,86366.0,0.31522678]
[1742433531832,0.2625,86367.0,86366.0,0.67602678]
[1742433535237,0.1289,86367.0,86366.0,0.67602678]
[1742433535431,0.003,86367.0,86366.0,0.67602678]
[1742433535631,0.003,86367.0,86366.0,1.24202678]
[1742433537129,0.1357,86367.0,86366.0,1.24202678]
[1742433538138,0.1357,86367.0,86366.0,0.88122678]
[1742433538440,0.1357,86367.0,86366.0,1.24202678]
[1742433538641,0.003,86367.0,86366.0,1.24202678]
[1742433541235,0.003,86367.0,86366.0,1.51925108]
[1742433544545,0.003,86367.0,86366.0,2.74202678]
[1742433545435,0.00017368,86375.0,86374.0,0.0926]
[1742433545636,0.00017368,86375.0,86374.0,0.91248]
[1742433546336,0.00017368,86375.0,86374.0,1.17368]
[1742433546535,0.00117368,86375.0,86374.0,1.17368]
[1742433547242,0.00117368,86375.0,86374.0,1.46368]
[1742433554552,0.00117368,86375.0,86374.0,1.3446]
[1742433554753,0.00117368,86375.0,86374.0,1.46368]
[1742433554953,0.13147368,86375.0,86374.0,1.46368]
[1742433558972,0.26317368,86375.0,86374.0,1.46368]
[1742433561467,0.13287368,86375.0,86374.0,1.46368]
[1742433565572,0.00117368,86375.0,86374.0,1.46368]
[1742433565970,0.11287368,86375.0,86374.0,1.46368]
[1742433567264,0.11287368,86375.0,86374.0,1.2131]
[1742433567579,0.22587368,86375.0,86374.0,0.9231]
[1742433567780,0.22587368,86375.0,86374.0,1.0421]
[1742433568877,0.23542899,86375.0,86374.0,0.7934]
[1742433570377,0.23542899,86375.0,86374.0,0.34]
[1742433570577,0.0463,86374.0,86361.0,0.0463069]
[1742433570876,0.0463032,86368.0,86366.0,0.0926078]
[1742433571180,0.0926089,86366.0,86365.0,0.0926094]
[1742433571579,0.2284,86366.0,86365.0,0.0926094]
[1742433571877,0.1139,86366.0,86365.0,0.2126094]
[1742433572373,0.1139,86366.0,86365.0,0.7958094]
[1742433572876,0.00017368,86375.0,86371.0,0.0463016]
[1742433573179,0.00017368,86375.0,86374.0,0.4534]
[1742433573378,0.00017368,86375.0,86374.0,0.8076]
[1742433573587,0.00017368,86375.0,86374.0,0.6985]
[1742433573769,0.00017368,86375.0,86374.0,2.1985]
[1742433574980,0.00017368,86375.0,86374.0,2.3076]
[1742433575179,0.00017368,86375.0,86374.0,2.1985]
[1742433576272,0.00017368,86375.0,86374.0,2.3104]
[1742433578892,0.00964945,86375.0,86374.0,2.3104]
[1742433579184,0.12154945,86375.0,86374.0,2.5604]
[1742433579480,0.00964945,86375.0,86374.0,2.5604]
[1742433580387,0.00963758,86375.0,86374.0,2.5604]
[1742433582789,0.00017368,86375.0,86374.0,2.5604]
[1742433583877,0.00017368,86375.0,86374.0,2.67936]
[1742433584893,0.00963041,86375.0,86374.0,2.67936]
[1742433585793,0.00017368,86375.0,86374.0,2.67936]
[1742433586892,0.00959451,86375.0,86374.0,2.67936]
[1742433587090,0.00959451,86375.0,86374.0,3.04016]
[1742433587884,0.00017368,86375.0,86374.0,3.04016]
[1742433590585,0.00017368,86375.0,86374.0,2.9212]
[1742433590793,0.00017368,86375.0,86374.0,3.04012]
[1742433593005,0.3608,86397.0,86374.0,3.04012]
[1742433593181,0.10824,86396.0,86395.0,0.4533775]
[1742433593381,0.1082,86396.0,86395.0,0.5822975]
[1742433593584,0.1082,86396.0,86395.0,0.6122975]
[1742433593791,0.1082,86396.0,86395.0,2.1122975]
[1742433594384,0.1082,86396.0,86395.0,2.22925626]
[1742433594988,0.1082,86396.0,86395.0,2.11033626]
[1742433595182,0.1082,86396.0,86395.0,2.24170993]
[1742433595991,0.1082,86396.0,86395.0,2.47170993]
[1742433596391,0.02795991,86425.0,86424.0,0.0925465]
[1742433596693,0.07289336,86433.0,86427.0,0.0925433]
[1742433596996,0.092545,86426.0,86425.0,0.0925448]
[1742433597188,0.0462716,86427.0,86419.0,0.1049]
[1742433597395,0.0462716,86427.0,86423.0,0.0925458]
[1742433597396,0.0925472,86424.0,86423.0,0.0925458]
[1742433597590,0.0925472,86424.0,86423.0,0.1225458]
[1742433597904,0.10212708,86424.0,86423.0,0.08637368]
[1742433598194,0.00957988,86424.0,86423.0,0.08637368]
[1742433599103,0.10212638,86424.0,86423.0,0.08637368]
[1742433599291,0.00957988,86424.0,86423.0,0.09871111]
[1742433599793,0.22517988,86424.0,86423.0,0.09871111]
[1742433600590,0.31772638,86424.0,86423.0,0.09871111]
[1742433600798,0.31772638,86424.0,86423.0,0.03]
[1742433600992,0.0925561,86415.0,86413.0,0.0925572]
[1742433601189,0.10213598,86415.0,86411.0,0.11888]
[1742433601402,0.10213598,86415.0,86413.0,0.01281977]
[1742433601593,0.10213598,86415.0,86413.0,0.0925581]
[1742433601902,0.3399645,86415.0,86407.0,0.0925644]
[1742433602106,0.3399645,86415.0,86409.0,0.0925619]
[1742433602401,0.0925765,86396.0,86395.0,0.1388636]
[1742433602700,0.4533749,86398.0,86397.0,0.0925743]
[1742433603200,0.0925749,86398.0,86397.0,0.0925743]
[1742433603504,0.4533749,86398.0,86397.0,0.0925743]
[1742433604103,0.0925829,86390.0,86389.0,0.00017356]
[1742433604301,0.0925829,86390.0,86389.0,0.09275756]
[1742433605399,0.32838801,86390.0,86389.0,0.00017356]
[1742433605702,0.32838801,86390.0,86381.0,0.0462959]
[1742433605703,0.138901,86375.0,86374.0,0.0925993]
[1742433606006,0.138901,86375.0,86374.0,0.2351989]
[1742433606007,0.14849631,86375.0,86374.0,0.2351989]
[1742433606203,0.25499631,86375.0,86374.0,0.2351989]
[1742433606997,0.25499631,86375.0,86374.0,0.1425993]
[1742433607198,0.25499631,86375.0,86374.0,0.05]
[1742433607199,0.26438514,86375.0,86374.0,0.05]
[1742433607397,0.26438514,86375.0,86374.0,0.1426]
[1742433607593,0.26438514,86375.0,86374.0,0.05]
[1742433607795,0.26438514,86375.0,86366.0,0.11117366]
[1742433607796,0.0926033,86371.0,86369.0,0.0926051]
[1742433607994,0.10219961,86370.0,86369.0,0.0926051]
[1742433608196,0.0926075,86367.0,86366.0,0.00017366]
[1742433608405,0.0926183,86357.0,86356.0,0.01286305]
[1742433608704,0.10221361,86357.0,86356.0,0.02]
[1742433608908,0.10221361,86357.0,86356.0,0.2698226]
[1742433609204,0.11160244,86357.0,86356.0,0.2698226]
[1742433609399,0.01898414,86357.0,86356.0,0.2698226]
[1742433609605,0.01898414,86357.0,86356.0,0.28209771]
[1742433609804,0.01882581,86357.0,86356.0,0.39279771]
[1742433610007,0.01882581,86357.0,86356.0,0.39479771]
[1742433610306,0.01882581,86357.0,86356.0,0.39779771]
[1742433610893,0.00938883,86357.0,86356.0,0.39779771]
[1742433611607,0.00938883,86357.0,86356.0,0.40779771]
[1742433611993,0.01888786,86357.0,86356.0,0.40779771]
[1742433613115,4e-05,86379.0,86356.0,0.54887511]
[1742433613299,0.1038,86389.0,86386.0,0.0925872]
[1742433614105,0.07289336,86396.0,86386.0,0.0925872]
[1742433614106,0.07289336,86396.0,86395.0,0.0925775]
[1742433614302,0.0925765,86396.0,86395.0,0.195153]
[1742433614710,0.00017366,86404.0,86397.0,0.1388626]
[1742433614910,0.00017366,86404.0,86403.0,0.092569]
[1742433616201,0.09274156,86404.0,86403.0,0.092569]
[1742433616509,0.00017366,86404.0,86403.0,0.092569]
[1742433616710,0.00317366,86404.0,86403.0,0.092569]
[1742433617310,0.10687366,86404.0,86403.0,0.092569]
[1742433617505,0.19944156,86404.0,86403.0,0.092569]
[1742433617708,0.19944156,86404.0,86387.0,0.11884]
[1742433617709,0.0925765,86396.0,86387.0,0.11884]
[1742433617911,0.0925765,86396.0,86395.0,0.0925775]
[1742433618117,0.046291,86391.0,86387.0,0.1056]
[1742433618314,0.092585,86389.0,86388.0,0.092584]
[1742433618511,0.092585,86389.0,86388.0,0.102584]
[1742433618904,0.197985,86389.0,86388.0,0.102584]
[1742433619109,0.197985,86389.0,86388.0,0.11528039]
[1742433619110,0.308485,86389.0,86388.0,0.11528039]
[1742433619913,0.5767,86389.0,86372.0,0.3608]
[1742433620112,0.5767,86389.0,86379.0,0.1056]
[1742433620113,0.0925936,86380.0,86379.0,0.1056]
[1742433620313,0.0925936,86380.0,86378.0,0.01017366]
[1742433620314,0.0925947,86379.0,86378.0,0.00017366]
[1742433620619,0.1979947,86379.0,86378.0,0.00017366]
[1742433620814,0.0926065,86369.0,86368.0,0.0926057]
[1742433621010,0.22396076,86369.0,86368.0,0.0926057]
[1742433621205,0.2114465,86369.0,86368.0,0.0926057]
[1742433621406,0.4203465,86369.0,86368.0,0.0926057]
[1742433623014,0.4203465,86369.0,86368.0,0.2014057]
[1742433632121,0.3147465,86369.0,86368.0,0.2014057]
[1742433633623,0.1959065,86369.0,86368.0,0.2014057]
[1742433633823,0.3147465,86369.0,86368.0,0.2014057]
[1742433637321,0.0926065,86368.0,86367.0,0.1083]
[1742433637527,0.0926129,86362.0,86361.0,0.1016]
[1742433637722,0.5722129,86362.0,86361.0,0.194214]
[1742433637923,0.5722129,86362.0,86361.0,0.1016]
[1742433638122,0.58173312,86362.0,86361.0,0.194214]
[1742433638322,0.68613312,86362.0,86361.0,0.1016]
[1742433638525,0.69554113,86362.0,86361.0,0.1016]
[1742433638725,0.69554113,86362.0,86361.0,0.1026]
[1742433638927,0.69554113,86362.0,86361.0,0.195214]
[1742433639118,0.69554113,86362.0,86361.0,0.1026]
[1742433639320,0.70802885,86362.0,86361.0,0.1026]
[1742433639830,0.092629,86347.0,86346.0,0.1979267]
[1742433640031,0.10234468,86347.0,86346.0,0.3384267]
[1742433640330,0.1117281,86347.0,86346.0,0.35121477]
[1742433640532,0.1097281,86347.0,86346.0,0.35121477]
[1742433640832,0.1097281,86347.0,86346.0,0.45411477]
[1742433641025,0.0190991,86347.0,86346.0,0.45411477]
[1742433641221,0.1117281,86347.0,86346.0,0.45411477]
[1742433641423,0.1117281,86347.0,86346.0,0.46011477]
[1742433641928,0.10203701,86347.0,86346.0,0.46011477]
[1742433642128,0.11182903,86347.0,86346.0,0.46011477]
[1742433642629,0.11182903,86347.0,86346.0,0.46511477]
[1742433643025,0.11182903,86347.0,86346.0,0.47511477]
[1742433644227,0.11182903,86347.0,86346.0,1.97511477]
[1742433646132,0.11180483,86347.0,86346.0,1.97511477]
[1742433646936,0.11180483,86347.0,86346.0,1.92880087]
[1742433649446,0.01917583,86347.0,86346.0,1.92880087]
[1742433650142,0.11180483,86347.0,86346.0,1.92880087]
[1742433652238,0.11180483,86347.0,86346.0,1.92480087]
[1742433653233,0.11180483,86347.0,86346.0,1.91880087]
[1742433653436,0.11180483,86347.0,86346.0,1.91980087]
[1742433654243,0.11191867,86347.0,86346.0,1.91980087]
[1742433656147,0.10203701,86347.0,86346.0,1.91980087]
[1742433656440,0.11193552,86347.0,86346.0,1.91980087]
[1742433657748,0.11193552,86347.0,86346.0,1.87348807]
[1742433657941,0.11193552,86347.0,86346.0,1.95611817]
[1742433658345,0.12826023,86347.0,86346.0,1.85081817]
[1742433658541,0.12826023,86347.0,86346.0,1.8380301]
[1742433658947,0.12826023,86347.0,86346.0,1.80182773]
[1742433659354,0.11193552,86347.0,86346.0,1.80182773]
[1742433659749,0.12784426,86347.0,86346.0,1.77576202]
[1742433660347,0.11193552,86347.0,86346.0,1.77576202]
[1742433663662,0.11177758,86347.0,86346.0,1.77576202]
[1742433665159,0.11179537,86347.0,86346.0,1.77576202]
[1742433669764,0.11152007,86347.0,86346.0,1.77576202]
[1742433670675,0.11152007,86347.0,86346.0,1.68313192]
[1742433670867,0.11152007,86347.0,86346.0,0.27576202]
[1742433671366,0.12791857,86347.0,86346.0,0.27576202]
[1742433672163,0.14427234,86347.0,86346.0,0.27576202]
[1742433673372,0.14427234,86347.0,86346.0,0.24969576]
[1742433674168,0.14427234,86347.0,86346.0,0.1449]
[1742433674367,0.0926376,86339.0,86334.0,0.0463213]
[1742433674566,0.10212066,86339.0,86334.0,0.1103]
[1742433674866,0.0926419,86335.0,86334.0,0.1103]
[1742433675168,0.0926419,86335.0,86324.0,0.0463265]
[1742433675169,0.00948306,86335.0,86324.0,0.0463265]
[1742433675468,0.0926526,86325.0,86324.0,0.1989775]
[1742433675665,0.10213566,86325.0,86324.0,1.56]
[1742433675871,0.11176768,86325.0,86324.0,0.1526537]
[1742433676063,0.11176768,86325.0,86324.0,0.1426537]
[1742433676263,0.34074178,86325.0,86324.0,0.1426537]
[1742433676459,0.34074178,86325.0,86324.0,0.2477537]
[1742433676666,0.33574178,86325.0,86324.0,0.2477537]
[1742433676970,0.35212575,86325.0,86324.0,0.2477537]